[Event "Cracovia Chess Festival A 2021"]
[Site "Cracow"]
[Date "2022.01.02"]
[Round "7.16"]
[White "Georgakopoulos, Nikolaos K."]
[Black "Paszewski, Mateusz"]
[Result "1-0"]
[ECO "B10"]
[WhiteElo "2159"]
[BlackElo "2300"]
[Annotator "ChessBase"]
[PlyCount "65"]
[EventDate "2021.12.27"]
[EventCountry "POL"]
[SourceTitle "playchess.com"]
[Source "ChessBase"]
[SourceQuality "1"]
[TimeControl "40/5400+30:1800+30"]

1. e4 {[%emt 0:00:23]} c6 {[%emt 0:00:16]} 2. Nc3 {[%emt 0:00:05]} d5 {[%emt 0:00:04]} 3. Nf3 {[%emt 0:00:04]} dxe4 {[%emt 0:00:40]} 4. Nxe4 {[%emt 0:00:07]} Nf6 {[%emt 0:00:02]} 5. Qe2 {[%emt 0:00:10]} Nxe4 {[%emt 0:00:11]} 6. Qxe4 {[%emt 0:00:05]} Nd7 {[%emt 0:00:02]} 7. Bc4 {[%emt 0:00:08]} Nf6 {[%emt 0:00:15]} 8. Ne5 {[%emt 0:00:06]} e6 {[%emt 0:00:31]} 9. Qe2 {[%emt 0:00:05]} b5 {[%emt 0:00:27]} 10. Bd3 {[%emt 0:00:06]} Qc7 {[%emt 0:01:56]} 11. a4 {[%emt 0:19:35]} b4 {[%emt 0:00:13]} 12. b3 {[%emt 0:01:25]} Bb7 {[%emt 0:17:50]} 13. Bb2 {[%emt 0:00:10]} Be7 {[%emt 0:01:47]} 14. O-O-O {[%emt 0:05:48]} Nd5 {[%emt 0:07:27]} 15. g3 {[%emt 0:12:18]} Bf6 {[%emt 0:01:56]} 16. f4 {[%emt 0:00:07]} O-O-O {[%emt 0:13:05]} 17. Rhf1 {[%emt 0:05:03]} g6 {[%emt 0:06:25]} 18. Kb1 {[%emt 0:01:18]} h5 {[%emt 0:10:03]} 19. h3 {[%emt 0:09:55]} Kb8 {[%emt 0:03:14]} 20. a5 {[%emt 0:10:17]} Rhe8 {[%emt 0:05:22]} 21. a6 {[%emt 0:00:08]} Ba8 {[%emt 0:00:48]} 22. Be4 {[%emt 0:09:04]} Kc8 {[%emt 0:06:35]} 23. Rde1 {[%emt 0:01:10]} Re7 {[%emt 0:10:00]} 24. Bxd5 {[%emt 0:10:51]} exd5 {[%emt 0:01:43]} 25. g4 {[%emt 0:00:07]} hxg4 {[%emt 0:05:11]} 26. Qxg4+ {[%emt 0:00:09]} Kb8 {[%emt 0:01:03]} 27. Nd7+ {[%emt 0:00:14]} Rexd7 {[%emt 0:04:27]} 28. Bxf6 {[%emt 0:00:07]} c5 {[%emt 0:00:29]} 29. Bxd8 {[%emt 0:02:33]} Rxd8 {[%emt 0:00:06]} 30. f5 {[%emt 0:00:40]} c4 {[%emt 0:00:08]} 31. fxg6 {[%emt 0:01:44]} cxb3 {[%emt 0:01:09]} 32. Qxb4+ {[%emt 0:00:22]} Kc8 {[%emt 0:00:07]} 33. cxb3 {[%emt 0:00:13]} 1-0

[Event "Cracovia Chess Festival A 2021"]
[Site "Cracow"]
[Date "2022.01.02"]
[Round "7.20"]
[White "Raczynski, Krzysztof"]
[Black "Suder, Jakub"]
[Result "1/2-1/2"]
[ECO "B32"]
[WhiteElo "2194"]
[BlackElo "2349"]
[Annotator "ChessBase"]
[PlyCount "62"]
[EventDate "2021.12.27"]
[EventCountry "POL"]
[SourceTitle "playchess.com"]
[Source "ChessBase"]
[SourceQuality "1"]
[TimeControl "40/5400+30:1800+30"]

1. e4 {[%emt 0:00:05]} c5 {[%emt 0:00:03]} 2. Nf3 {[%emt 0:00:21]} Nc6 {[%emt 0:00:05]} 3. d4 {[%emt 0:02:48]} cxd4 {[%emt 0:00:05]} 4. Nxd4 {[%emt 0:00:04]} e5 {[%emt 0:00:10]} 5. Nb5 {[%emt 0:00:56]} d6 {[%emt 0:00:07]} 6. c4 {[%emt 0:02:04]} Be7 {[%emt 0:00:09]} 7. N1c3 {[%emt 0:01:57]} a6 {[%emt 0:00:08]} 8. Na3 {[%emt 0:00:16]} f5 {[%emt 0:00:07]} 9. exf5 {[%emt 0:02:04]} Bxf5 {[%emt 0:00:06]} 10. Bd3 {[%emt 0:00:18]} Be6 {[%emt 0:00:08]} 11. O-O {[%emt 0:02:06]} Nf6 {[%emt 0:00:16]} 12. Nc2 {[%emt 0:01:42]} O-O {[%emt 0:00:19]} 13. Nd5 {[%emt 0:14:21]} Kh8 {[%emt 0:04:27]} 14. Nce3 {[%emt 0:02:49]} Nd4 {[%emt 0:05:14]} 15. b3 {[%emt 0:02:45]} Rc8 {[%emt 0:09:53]} 16. Bb2 {[%emt 0:04:00]} Nxd5 {[%emt 0:04:27]} 17. Nxd5 {[%emt 0:02:14]} Bxd5 {[%emt 0:01:57]} 18. cxd5 {[%emt 0:00:07]} Qe8 {[%emt 0:01:51]} 19. Be4 {[%emt 0:16:46]} Bd8 {[%emt 0:06:31]} 20. Qg4 {[%emt 0:03:09]} Bb6 {[%emt 0:02:34]} 21. g3 {[%emt 0:00:45]} g6 {[%emt 0:18:21]} 22. Rac1 {[%emt 0:05:41]} Nf5 {[%emt 0:04:12]} 23. Bxf5 {[%emt 0:03:43]} Rxf5 {[%emt 0:02:32]} 24. Qe2 {[%emt 0:07:16]} Rxc1 {[%emt 0:02:05]} 25. Bxc1 {[%emt 0:00:08]} Qf7 {[%emt 0:01:03]} 26. g4 {[%emt 0:03:39]} Rf3 {[%emt 0:03:35]} 27. Be3 {[%emt 0:02:45]} Bxe3 {[%emt 0:02:36]} 28. fxe3 {[%emt 0:00:17]} Rxf1+ {[%emt 0:00:54]} 29. Qxf1 {[%emt 0:00:06]} Kg7 {[%emt 0:00:39]} 30. Qxf7+ {[%emt 0:01:29]} Kxf7 {[%emt 0:00:07]} 31. e4 {[%emt 0:00:38]} Ke7 {[%emt 0:00:47]} 1/2-1/2

[Event "Cracovia Chess Festival A 2021"]
[Site "Cracow"]
[Date "2022.01.02"]
[Round "7.22"]
[White "Tsaknakis, Zisis"]
[Black "Redzisz, Michal"]
[Result "1-0"]
[ECO "A05"]
[WhiteElo "2202"]
[BlackElo "2261"]
[Annotator "ChessBase"]
[PlyCount "80"]
[EventDate "2021.12.27"]
[EventCountry "POL"]
[SourceTitle "playchess.com"]
[Source "ChessBase"]
[SourceQuality "1"]
[TimeControl "40/5400+30:1800+30"]

1. Nf3 {[%emt 0:00:25]} Nf6 {[%emt 0:00:19]} 2. g3 {[%emt 0:00:02]} d5 {[%emt 0:01:56]} 3. Bg2 {[%emt 0:00:02]} g6 {[%emt 0:00:17]} 4. O-O {[%emt 0:00:10]} Bg7 {[%emt 0:00:02]} 5. d3 {[%emt 0:00:08]} O-O {[%emt 0:00:09]} 6. Nbd2 {[%emt 0:00:07]} b6 {[%emt 0:00:36]} 7. e4 {[%emt 0:01:07]} dxe4 {[%emt 0:00:19]} 8. dxe4 {[%emt 0:00:10]} Bb7 {[%emt 0:01:05]} 9. Qe2 {[%emt 0:05:39]} e6 {[%emt 0:06:02]} 10. e5 {[%emt 0:03:42]} Nfd7 {[%emt 0:02:24]} 11. Nc4 {[%emt 0:02:55]} Nc6 {[%emt 0:03:06]} 12. Bf4 {[%emt 0:04:45]} h6 {[%emt 0:07:43]} 13. h4 {[%emt 0:00:40]} Qe7 {[%emt 0:00:21]} 14. Ne3 {[%emt 0:13:00]} Qc5 {[%emt 0:33:35]} 15. Ng4 {[%emt 0:01:46]} Kh7 {[%emt 0:03:00]} 16. Rad1 {[%emt 0:12:04]} Rad8 {[%emt 0:01:42]} 17. Bxh6 {[%emt 0:00:13]} Bxh6 {[%emt 0:10:46]} 18. Rxd7 {[%emt 0:00:04]} Ba6 {[%emt 0:00:27]} 19. Qxa6 {[%emt 0:14:04]} Nb8 {[%emt 0:00:20]} 20. Nf6+ {[%emt 0:07:06]} Kg7 {[%emt 0:09:14]} 21. Qd3 {[%emt 0:01:50]} Nxd7 {[%emt 0:00:04]} 22. Nxd7 {[%emt 0:00:08]} Qc6 {[%emt 0:02:01]} 23. Rd1 {[%emt 0:00:21]} Rfe8 {[%emt 0:01:41]} 24. Ng5 {[%emt 0:01:49]} Qa4 {[%emt 0:01:02]} 25. Ne4 {[%emt 0:04:33]} Re7 {[%emt 0:01:53]} 26. Nef6 {[%emt 0:00:21]} Kh8 {[%emt 0:01:13]} 27. b3 {[%emt 0:04:18]} Qb4 {[%emt 0:02:17]} 28. Qc4 {[%emt 0:05:06]} Qxc4 {[%emt 0:01:54]} 29. bxc4 {[%emt 0:00:01]} Bg7 {[%emt 0:00:07]} 30. Bc6 {[%emt 0:00:59]} Bxf6 {[%emt 0:00:02]} 31. exf6 {[%emt 0:00:07]} Ree8 {[%emt 0:00:02]} 32. Re1 {[%emt 0:00:45]} Kh7 {[%emt 0:00:49]} 33. Re5 {[%emt 0:01:51]} Kh6 {[%emt 0:00:14]} 34. Kg2 {[%emt 0:00:16]} Rg8 {[%emt 0:00:03]} 35. f4 {[%emt 0:00:51]} a5 {[%emt 0:00:11]} 36. a4 {[%emt 0:00:56]} Rh8 {[%emt 0:00:26]} 37. g4 {[%emt 0:02:07]} Rhg8 {[%emt 0:00:04]} 38. Kg3 {[%emt 0:00:56]} Kh7 {[%emt 0:00:19]} 39. h5 {[%emt 0:03:44]} Rh8 {[%emt 0:00:45]} 40. hxg6+ {[%emt 0:00:00]} Kg8 {[%emt 0:00:00]} 1-0

[Event "Cracovia Chess Festival A 2021"]
[Site "Cracow"]
[Date "2022.01.02"]
[Round "7.23"]
[White "Kyc, Jerzy"]
[Black "Krawczyk, Flawian"]
[Result "1/2-1/2"]
[ECO "B94"]
[WhiteElo "2250"]
[BlackElo "2114"]
[Annotator "ChessBase"]
[PlyCount "46"]
[EventDate "2021.12.27"]
[EventCountry "POL"]
[SourceTitle "playchess.com"]
[Source "ChessBase"]
[SourceQuality "1"]
[TimeControl "40/5400+30:1800+30"]

1. e4 {[%emt 0:00:04]} c5 {[%emt 0:00:05]} 2. Nf3 {[%emt 0:00:03]} d6 {[%emt 0:00:03]} 3. d4 {[%emt 0:00:03]} cxd4 {[%emt 0:00:02]} 4. Nxd4 {[%emt 0:00:05]} Nf6 {[%emt 0:00:03]} 5. Nc3 {[%emt 0:00:07]} a6 {[%emt 0:00:01]} 6. Bg5 {[%emt 0:00:07]} Nbd7 {[%emt 0:00:03]} 7. f4 {[%emt 0:00:17]} Qc7 {[%emt 0:00:03]} 8. Qf3 {[%emt 0:01:14]} h6 {[%emt 0:00:19]} 9. Bxf6 {[%emt 0:02:04]} Nxf6 {[%emt 0:00:06]} 10. f5 {[%emt 0:01:10]} Qc5 {[%emt 0:00:07]} 11. O-O-O {[%emt 0:00:26]} g5 {[%emt 0:00:04]} 12. Nd5 {[%emt 0:05:17]} Nxd5 {[%emt 0:02:43]} 13. exd5 {[%emt 0:00:39]} Bg7 {[%emt 0:01:02]} 14. c3 {[%emt 0:03:29]} Bf6 {[%emt 0:12:11]} 15. Be2 {[%emt 0:04:44]} b5 {[%emt 0:02:11]} 16. Qe4 {[%emt 0:04:11]} Bb7 {[%emt 0:03:22]} 17. Nc6 {[%emt 0:09:40]} Bxc6 {[%emt 0:00:31]} 18. dxc6 {[%emt 0:00:45]} Qe5 {[%emt 0:04:00]} 19. Bf3 {[%emt 0:03:43]} Qxe4 {[%emt 0:00:55]} 20. Bxe4 {[%emt 0:00:02]} Ra7 {[%emt 0:00:20]} 21. Kc2 {[%emt 0:04:27]} Kd8 {[%emt 0:00:46]} 22. Bd5 {[%emt 0:04:09]} Rf8 {[%emt 0:00:11]} 23. a4 {[%emt 0:06:50]} Kc7 {[%emt 0:00:19]} 1/2-1/2

[Event "Cracovia Chess Festival A 2021"]
[Site "Cracow"]
[Date "2022.01.02"]
[Round "7.24"]
[White "Barath Kalyan M"]
[Black "Kopylov, Michael"]
[Result "1/2-1/2"]
[ECO "A05"]
[WhiteElo "2103"]
[BlackElo "2391"]
[Annotator "ChessBase"]
[PlyCount "61"]
[EventDate "2021.12.27"]
[EventCountry "POL"]
[SourceTitle "playchess.com"]
[Source "ChessBase"]
[SourceQuality "1"]
[TimeControl "40/5400+30:1800+30"]

1. Nf3 {[%emt 0:00:46]} Nf6 {[%emt 0:06:16]} 2. c4 {[%emt 0:00:09]} g6 {[%emt 0:00:59]} 3. Nc3 {[%emt 0:00:11]} Bg7 {[%emt 0:00:51]} 4. g3 {[%emt 0:00:24]} O-O {[%emt 0:02:36]} 5. Bg2 {[%emt 0:00:06]} Nc6 {[%emt 0:00:53]} 6. O-O {[%emt 0:00:49]} d6 {[%emt 0:00:18]} 7. d3 {[%emt 0:04:30]} e5 {[%emt 0:03:09]} 8. Rb1 {[%emt 0:00:57]} a5 {[%emt 0:00:09]} 9. a3 {[%emt 0:00:28]} Re8 {[%emt 0:00:08]} 10. Bg5 {[%emt 0:03:07]} Nd4 {[%emt 0:01:12]} 11. Nd2 {[%emt 0:03:34]} c6 {[%emt 0:13:29]} 12. Nde4 {[%emt 0:05:26]} Ne6 {[%emt 0:03:26]} 13. Bxf6 {[%emt 0:05:55]} Bxf6 {[%emt 0:02:25]} 14. Nxf6+ {[%emt 0:00:57]} Qxf6 {[%emt 0:00:06]} 15. e3 {[%emt 0:00:22]} Ng5 {[%emt 0:03:44]} 16. h4 {[%emt 0:17:03]} Nh3+ {[%emt 0:04:29]} 17. Kh2 {[%emt 0:00:16]} Nxf2 {[%emt 0:00:07]} 18. Ne4 {[%emt 0:01:27]} Nxe4 {[%emt 0:00:07]} 19. Rxf6 {[%emt 0:00:05]} Nxf6 {[%emt 0:00:03]} 20. e4 {[%emt 0:03:53]} Ng4+ {[%emt 0:12:03]} 21. Kg1 {[%emt 0:01:15]} Kg7 {[%emt 0:00:35]} 22. Qf3 {[%emt 0:01:23]} h5 {[%emt 0:01:12]} 23. Rf1 {[%emt 0:00:18]} f6 {[%emt 0:00:16]} 24. Bh3 {[%emt 0:01:11]} Rf8 {[%emt 0:00:12]} 25. b3 {[%emt 0:00:57]} Be6 {[%emt 0:03:27]} 26. Bxg4 {[%emt 0:01:07]} Bxg4 {[%emt 0:00:38]} 27. Qe3 {[%emt 0:00:09]} c5 {[%emt 0:00:43]} 28. Qd2 {[%emt 0:00:41]} b6 {[%emt 0:03:27]} 29. Rb1 {[%emt 0:01:28]} Rf7 {[%emt 0:00:44]} 30. Qc3 {[%emt 0:07:19]} Rfa7 {[%emt 0:02:29]} 31. Kg2 {[%emt 0:03:10]} 1/2-1/2

[Event "Cracovia Chess Festival A 2021"]
[Site "Cracow"]
[Date "2022.01.02"]
[Round "7.26"]
[White "Sernecki, Franciszek"]
[Black "Godzwon, Iwo"]
[Result "0-1"]
[ECO "E16"]
[WhiteElo "2220"]
[BlackElo "2352"]
[Annotator "ChessBase"]
[PlyCount "92"]
[EventDate "2021.12.27"]
[EventCountry "POL"]
[SourceTitle "playchess.com"]
[Source "ChessBase"]
[SourceQuality "1"]
[TimeControl "40/5400+30:1800+30"]

1. d4 {[%emt 0:00:20]} Nf6 {[%emt 0:00:05]} 2. c4 {[%emt 0:00:03]} e6 {[%emt 0:00:04]} 3. Nf3 {[%emt 0:00:06]} b6 {[%emt 0:00:03]} 4. g3 {[%emt 0:00:05]} Bb7 {[%emt 0:00:09]} 5. Bg2 {[%emt 0:00:12]} Bb4+ {[%emt 0:00:04]} 6. Bd2 {[%emt 0:00:23]} a5 {[%emt 0:00:04]} 7. O-O {[%emt 0:00:33]} O-O {[%emt 0:00:05]} 8. Bg5 {[%emt 0:01:53]} Be7 {[%emt 0:00:12]} 9. Nc3 {[%emt 0:01:08]} Ne4 {[%emt 0:13:20]} 10. Nxe4 {[%emt 0:11:12]} Bxe4 {[%emt 0:00:04]} 11. Bxe7 {[%emt 0:01:12]} Qxe7 {[%emt 0:00:03]} 12. Ne1 {[%emt 0:01:20]} Bxg2 {[%emt 0:03:39]} 13. Nxg2 {[%emt 0:00:26]} c5 {[%emt 0:15:14]} 14. d5 {[%emt 0:10:48]} a4 {[%emt 0:01:57]} 15. Rc1 {[%emt 0:12:35]} exd5 {[%emt 0:14:59]} 16. Qxd5 {[%emt 0:04:54]} Nc6 {[%emt 0:00:07]} 17. Qd1 {[%emt 0:07:28]} a3 {[%emt 0:03:38]} 18. b3 {[%emt 0:03:01]} Nb4 {[%emt 0:01:48]} 19. Qd2 Qe5 {[%emt 0:02:14]} 20. Rb1 {[%emt 0:09:14]} d5 {[%emt 0:09:36]} 21. Rfd1 {[%emt 0:01:27]} dxc4 {[%emt 0:13:37]} 22. bxc4 {[%emt 0:00:20]} h6 {[%emt 0:05:54]} 23. Nf4 {[%emt 0:15:10]} Qe4 {[%emt 0:03:46]} 24. Nd5 Rfd8 {[%emt 0:00:10]} 25. Qf4 {[%emt 0:03:58]} Qxe2 {[%emt 0:02:11]} 26. Re1 {[%emt 0:00:54]} Nxd5 {[%emt 0:00:18]} 27. Rxe2 {[%emt 0:01:02]} Nxf4 {[%emt 0:00:02]} 28. gxf4 {[%emt 0:00:07]} Ra6 {[%emt 0:01:25]} 29. Rb3 {[%emt 0:00:45]} Rd4 {[%emt 0:00:04]} 30. Re8+ {[%emt 0:00:30]} Kh7 {[%emt 0:00:05]} 31. Rb8 {[%emt 0:00:04]} Rxf4 {[%emt 0:03:22]} 32. R8xb6 {[%emt 0:00:27]} Rxb6 {[%emt 0:01:03]} 33. Rxb6 {[%emt 0:00:02]} Rxc4 {[%emt 0:00:03]} 34. Rb3 {[%emt 0:01:29]} Ra4 {[%emt 0:00:10]} 35. Kf1 {[%emt 0:01:49]} Kg6 {[%emt 0:00:16]} 36. Rb5 {[%emt 0:00:24]} c4 {[%emt 0:04:29]} 37. Ke2 {[%emt 0:00:58]} c3 {[%emt 0:01:35]} 38. Rb3 {[%emt 0:01:03]} Rc4 {[%emt 0:01:08]} 39. Kd1 {[%emt 0:00:09]} Rd4+ {[%emt 0:00:21]} 40. Kc1 {[%emt 0:00:00]} Rd2 {[%emt 0:00:00]} 41. Rxc3 {[%emt 0:00:28]} Rxa2 {[%emt 0:00:10]} 42. Rg3+ {[%emt 0:00:06]} Kh7 {[%emt 0:00:41]} 43. Rf3 {[%emt 0:00:07]} f6 {[%emt 0:00:03]} 44. Kb1 {[%emt 0:00:13]} Re2 {[%emt 0:00:02]} 45. h4 {[%emt 0:00:25]} Kg6 {[%emt 0:00:38]} 46. Rg3+ {[%emt 0:00:32]} Kf7 {[%emt 0:00:04]} 0-1

[Event "Cracovia Chess Festival A 2021"]
[Site "Cracow"]
[Date "2022.01.02"]
[Round "7.27"]
[White "Sharma Isha"]
[Black "Kopylov, Daniel"]
[Result "1-0"]
[ECO "B89"]
[WhiteElo "2200"]
[BlackElo "2317"]
[Annotator "ChessBase"]
[PlyCount "57"]
[EventDate "2021.12.27"]
[EventCountry "POL"]
[SourceTitle "playchess.com"]
[Source "ChessBase"]
[SourceQuality "1"]
[TimeControl "40/5400+30:1800+30"]

1. e4 {[%emt 0:00:03]} c5 {[%emt 0:03:29]} 2. Nf3 {[%emt 0:00:16]} d6 {[%emt 0:00:14]} 3. d4 {[%emt 0:00:05]} cxd4 {[%emt 0:00:05]} 4. Nxd4 {[%emt 0:00:04]} Nf6 {[%emt 0:00:05]} 5. Nc3 {[%emt 0:00:04]} Nc6 {[%emt 0:00:05]} 6. Bc4 {[%emt 0:00:06]} e6 {[%emt 0:00:06]} 7. Be3 {[%emt 0:00:26]} Be7 {[%emt 0:00:11]} 8. Qe2 {[%emt 0:00:46]} O-O {[%emt 0:00:40]} 9. O-O-O {[%emt 0:00:25]} Qc7 {[%emt 0:00:53]} 10. Bb3 {[%emt 0:00:23]} a6 {[%emt 0:00:20]} 11. g4 {[%emt 0:00:34]} Nxd4 {[%emt 0:01:04]} 12. Rxd4 {[%emt 0:00:10]} Nd7 {[%emt 0:00:19]} 13. g5 {[%emt 0:03:43]} Nc5 {[%emt 0:01:01]} 14. Rg1 {[%emt 0:04:51]} Bd7 {[%emt 0:02:08]} 15. Qh5 {[%emt 0:03:09]} Rfc8 {[%emt 0:02:37]} 16. e5 {[%emt 0:12:31]} g6 {[%emt 0:05:05]} 17. Qh3 {[%emt 0:03:05]} dxe5 {[%emt 0:03:04]} 18. Rh4 {[%emt 0:01:12]} h5 {[%emt 0:02:46]} 19. Rxh5 {[%emt 0:12:52]} Nxb3+ {[%emt 0:13:59]} 20. axb3 {[%emt 0:02:16]} gxh5 {[%emt 0:04:08]} 21. g6 {[%emt 0:00:05]} Bc5 {[%emt 0:26:16]} 22. gxf7+ {[%emt 0:10:27]} Kf8 {[%emt 0:00:27]} 23. Bh6+ {[%emt 0:00:36]} Ke7 {[%emt 0:01:17]} 24. Qh4+ {[%emt 0:00:05]} Kd6 {[%emt 0:00:33]} 25. Ne4+ {[%emt 0:03:18]} Kd5 {[%emt 0:03:02]} 26. Nxc5 {[%emt 0:06:45]} Qxc5 {[%emt 0:09:10]} 27. Rd1+ {[%emt 0:00:15]} Kc6 {[%emt 0:00:28]} 28. Be3 {[%emt 0:00:08]} Qb5 {[%emt 0:05:17]} 29. Qe7 {[%emt 0:00:46]} 1-0

[Event "Cracovia Chess Festival A 2021"]
[Site "Cracow"]
[Date "2022.01.02"]
[Round "7.28"]
[White "Romero Calduch, Sergio"]
[Black "Koziorowicz, Michal"]
[Result "0-1"]
[ECO "B43"]
[WhiteElo "2199"]
[BlackElo "2309"]
[Annotator "ChessBase"]
[PlyCount "48"]
[EventDate "2021.12.27"]
[EventCountry "POL"]
[SourceTitle "playchess.com"]
[Source "ChessBase"]
[SourceQuality "1"]
[TimeControl "40/5400+30:1800+30"]

1. Nf3 {[%emt 0:04:56]} e6 {[%emt 0:00:14]} 2. e4 {[%emt 0:03:23]} c5 {[%emt 0:00:07]} 3. d4 {[%emt 0:00:56]} cxd4 {[%emt 0:00:08]} 4. Nxd4 {[%emt 0:00:05]} a6 {[%emt 0:00:23]} 5. Nc3 {[%emt 0:02:37]} b5 {[%emt 0:02:51]} 6. e5 {[%emt 0:05:32]} Bb7 {[%emt 0:08:16]} 7. Qg4 {[%emt 0:06:59]} Qa5 {[%emt 0:15:25]} 8. Bf4 {[%emt 0:18:49]} b4 {[%emt 0:04:42]} 9. Nd1 {[%emt 0:04:31]} Ne7 {[%emt 0:12:15]} 10. Ne3 {[%emt 0:12:16]} Ng6 {[%emt 0:09:17]} 11. Nc4 {[%emt 0:05:32]} Qc5 {[%emt 0:02:37]} 12. O-O-O h5 {[%emt 0:03:30]} 13. Qg3 {[%emt 0:09:54]} h4 {[%emt 0:01:53]} 14. Qe3 {[%emt 0:02:42]} h3 {[%emt 0:01:29]} 15. Rg1 {[%emt 0:09:57]} hxg2 {[%emt 0:00:06]} 16. Rxg2 {[%emt 0:00:21]} Bxg2 {[%emt 0:07:50]} 17. Bxg2 {[%emt 0:00:07]} Nc6 {[%emt 0:00:04]} 18. Nxc6 {[%emt 0:05:57]} Qxc4 {[%emt 0:00:40]} 19. Bg5 {[%emt 0:04:53]} Bc5 {[%emt 0:03:57]} 20. Qd2 {[%emt 0:00:30]} O-O {[%emt 0:00:32]} 21. Na5 {[%emt 0:00:28]} Qxa2 {[%emt 0:00:40]} 22. Nb3 {[%emt 0:00:30]} Rac8 {[%emt 0:00:09]} 23. Qxd7 {[%emt 0:00:31]} Nxe5 {[%emt 0:00:35]} 24. Qd2 {[%emt 0:00:31]} Nc4 {[%emt 0:00:12]} 0-1

[Event "Cracovia Chess Festival A 2021"]
[Site "Cracow"]
[Date "2022.01.02"]
[Round "7.30"]
[White "Stanisz, Patryk"]
[Black "Svendsen, Bertil"]
[Result "1-0"]
[ECO "E46"]
[WhiteElo "2158"]
[BlackElo "2251"]
[Annotator "ChessBase"]
[PlyCount "69"]
[EventDate "2021.12.27"]
[EventCountry "POL"]
[SourceTitle "playchess.com"]
[Source "ChessBase"]
[SourceQuality "1"]
[TimeControl "40/5400+30:1800+30"]

1. d4 {[%emt 0:00:01]} Nf6 {[%emt 0:00:08]} 2. c4 {[%emt 0:00:08]} e6 {[%emt 0:00:12]} 3. Nc3 {[%emt 0:00:30]} Bb4 {[%emt 0:00:06]} 4. e3 {[%emt 0:01:03]} O-O {[%emt 0:00:14]} 5. Nge2 {[%emt 0:00:05]} Re8 {[%emt 0:01:49]} 6. a3 {[%emt 0:00:41]} Bf8 {[%emt 0:00:09]} 7. Ng3 {[%emt 0:03:44]} d5 {[%emt 0:00:27]} 8. cxd5 {[%emt 0:03:31]} exd5 {[%emt 0:00:16]} 9. Bd3 {[%emt 0:00:05]} c5 {[%emt 0:08:44]} 10. dxc5 {[%emt 0:05:55]} Bxc5 {[%emt 0:01:17]} 11. O-O {[%emt 0:00:37]} Nc6 {[%emt 0:00:11]} 12. b4 {[%emt 0:01:19]} Bf8 {[%emt 0:05:12]} 13. Nb5 {[%emt 0:18:42]} g6 {[%emt 0:01:11]} 14. Bb2 {[%emt 0:01:01]} Bg7 {[%emt 0:00:15]} 15. Rc1 {[%emt 0:05:26]} a6 {[%emt 0:10:07]} 16. Nd4 {[%emt 0:01:23]} Ne5 {[%emt 0:00:48]} 17. Be2 {[%emt 0:02:47]} Bd7 {[%emt 0:01:47]} 18. Qb3 {[%emt 0:02:02]} b5 {[%emt 0:07:19]} 19. Rfd1 {[%emt 0:16:56]} Nc4 {[%emt 0:07:55]} 20. Nf3 {[%emt 0:02:30]} Qb6 {[%emt 0:03:44]} 21. Bd4 {[%emt 0:01:35]} Qb7 {[%emt 0:00:31]} 22. Qc3 {[%emt 0:00:27]} Re6 {[%emt 0:07:58]} 23. Bxc4 {[%emt 0:13:57]} dxc4 {[%emt 0:01:18]} 24. Ng5 {[%emt 0:00:06]} Rc6 {[%emt 0:17:53]} 25. N5e4 {[%emt 0:00:45]} Nxe4 {[%emt 0:04:18]} 26. Nxe4 {[%emt 0:00:07]} Bf5 {[%emt 0:00:25]} 27. Bxg7 {[%emt 0:06:47]} Bxe4 {[%emt 0:00:08]} 28. f3 {[%emt 0:00:03]} Bd3 {[%emt 0:08:43]} 29. Bh6 {[%emt 0:00:37]} f6 {[%emt 0:02:30]} 30. Rxd3 {[%emt 0:00:15]} cxd3 {[%emt 0:00:08]} 31. Qxc6 {[%emt 0:00:18]} d2 {[%emt 0:01:51]} 32. Qe6+ {[%emt 0:01:21]} Kh8 {[%emt 0:00:54]} 33. Qxf6+ {[%emt 0:00:05]} Kg8 {[%emt 0:00:05]} 34. Qe6+ {[%emt 0:00:46]} Kh8 {[%emt 0:00:03]} 35. Rd1 {[%emt 0:00:13]} 1-0

[Event "Cracovia Chess Festival A 2021"]
[Site "Cracow"]
[Date "2022.01.02"]
[Round "7.31"]
[White "Nawin J J"]
[Black "Braeuning, Rudolf Wilhelm"]
[Result "1-0"]
[ECO "B36"]
[WhiteElo "2109"]
[BlackElo "2242"]
[Annotator "ChessBase"]
[PlyCount "88"]
[EventDate "2021.12.27"]
[EventCountry "POL"]
[SourceTitle "playchess.com"]
[Source "ChessBase"]
[SourceQuality "1"]
[TimeControl "40/5400+30:1800+30"]

1. e4 {[%emt 0:00:03]} c5 {[%emt 0:00:45]} 2. Nf3 {[%emt 0:00:07]} g6 {[%emt 0:00:01]} 3. d4 {[%emt 0:00:28]} cxd4 {[%emt 0:00:02]} 4. Nxd4 {[%emt 0:00:10]} Nc6 {[%emt 0:00:02]} 5. c4 {[%emt 0:00:17]} Nf6 {[%emt 0:00:02]} 6. Nc3 {[%emt 0:00:09]} d6 {[%emt 0:00:05]} 7. Be2 {[%emt 0:00:29]} Nxd4 {[%emt 0:00:10]} 8. Qxd4 {[%emt 0:00:08]} Bg7 {[%emt 0:00:14]} 9. Bg5 {[%emt 0:00:31]} O-O {[%emt 0:00:12]} 10. Qd2 {[%emt 0:00:12]} Be6 {[%emt 0:05:42]} 11. O-O {[%emt 0:00:29]} Qa5 {[%emt 0:06:37]} 12. Rad1 {[%emt 0:00:14]} Rfc8 {[%emt 0:02:48]} 13. b3 {[%emt 0:00:34]} a6 {[%emt 0:16:37]} 14. Bxf6 {[%emt 0:00:50]} Bxf6 {[%emt 0:11:35]} 15. Nd5 {[%emt 0:00:11]} Qxd2 {[%emt 0:00:16]} 16. Nxf6+ {[%emt 0:00:06]} Kg7 {[%emt 0:00:30]} 17. Nh5+ {[%emt 0:00:28]} gxh5 {[%emt 0:00:03]} 18. Rxd2 Rc5 {[%emt 0:00:37]} 19. f4 {[%emt 0:07:14]} f6 {[%emt 0:14:19]} 20. Bf3 {[%emt 0:14:57]} Ra7 {[%emt 0:08:52]} 21. Re1 {[%emt 0:15:55]} b5 {[%emt 0:04:11]} 22. e5 {[%emt 0:09:57]} dxe5 {[%emt 0:03:02]} 23. fxe5 {[%emt 0:00:19]} f5 {[%emt 0:01:53]} 24. Bd5 {[%emt 0:04:55]} Bf7 {[%emt 0:16:10]} 25. e6 {[%emt 0:04:45]} Bg6 {[%emt 0:00:15]} 26. b4 {[%emt 0:00:12]} Rcc7 {[%emt 0:01:16]} 27. c5 {[%emt 0:00:30]} a5 {[%emt 0:02:39]} 28. a3 {[%emt 0:00:18]} Kf6 29. Red1 {[%emt 0:01:16]} h6 {[%emt 0:03:28]} 30. Bb3 {[%emt 0:01:37]} Bh7 {[%emt 0:00:58]} 31. Rd8 {[%emt 0:02:07]} axb4 {[%emt 0:00:39]} 32. axb4 {[%emt 0:00:05]} Kg7 {[%emt 0:01:35]} 33. R1d7 {[%emt 0:01:10]} Kf6 {[%emt 0:00:50]} 34. Rf8+ {[%emt 0:01:24]} Kg6 {[%emt 0:00:21]} 35. Rxc7 {[%emt 0:03:15]} Rxc7 {[%emt 0:00:02]} 36. Rb8 {[%emt 0:00:21]} Ra7 {[%emt 0:00:30]} 37. Rxb5 {[%emt 0:00:43]} Ra1+ {[%emt 0:00:10]} 38. Kf2 {[%emt 0:00:05]} Rc1 {[%emt 0:00:51]} 39. Bd5 {[%emt 0:00:22]} Kf6 {[%emt 0:00:37]} 40. c6 {[%emt 0:00:00]} Bg8 {[%emt 0:00:00]} 41. Rc5 {[%emt 0:02:03]} Rxc5 {[%emt 0:01:07]} 42. bxc5 {[%emt 0:00:03]} Bxe6 {[%emt 0:00:10]} 43. Bxe6 {[%emt 0:00:10]} Kxe6 {[%emt 0:00:07]} 44. h4 {[%emt 0:00:05]} Kd5 1-0